fUST/lending_fUST_20251007
["ID","MTS","AMOUNT","RATE_DAILY","PERIOD"]
[389702316,1759806646091,-162.7393299,0.00018278,2]
[389702317,1759806646100,-297.6412454,0.00018278,2]
[389702318,1759806646109,-813.20878596,0.00018985,2]
[389702319,1759806646129,-4241.76847333,0.00018985,2]
[389704819,1759806715463,3800.0,0.00028767,120]
[389704854,1759807386131,515.3,0.00017,10]
[389704862,1759807585335,308.322646,0.00025,30]
[389704864,1759807596133,250.0,0.00025,30]
[389704865,1759807608321,250.0,0.00025,30]
[389704866,1759807610402,803.93990079,0.00025,30]
[389704879,1759807779191,217.0,0.00025,30]
[389704880,1759807797729,200.0,0.00026,60]
[389704881,1759807799406,678.056078,0.00013699,2]
[389704953,1759807832345,-504.175633,0.00016,2]
[389704955,1759807832356,-495.824367,0.00016,2]
[389704957,1759807832366,-89.39801639,0.0001625,2]
[389704999,1759807837973,-99.79719302,0.0001625,2]
[389705000,1759807837983,-405.95675726,0.000165,2]
[389705001,1759807837995,-594.04324274,0.000165,2]
[389705002,1759807838004,-208.11473035,0.0001705,2]
[389705003,1759807838013,-227.03425129,0.0001785,2]
[389705004,1759807838023,-500.72759189,0.00017913,2]
[389705005,1759807838032,-1000.0,0.00018,2]
[389705006,1759807838043,-391.5020677,0.00018356,2]
[389705007,1759807838056,-204.99752446,0.00018494,2]
[389705008,1759807838066,-264.21154368,0.00018594,2]
[389705009,1759807838075,-1027.2265694,0.000186,2]
[389705010,1759807838084,-245.95377223,0.0001865,2]
[389705011,1759807838095,-570.0,0.00018749,2]
[389705012,1759807838104,-500.0,0.00018856,2]
[389705013,1759807838114,-300.0,0.00018899,2]
[389705014,1759807838127,-175.68870627,0.00018899,2]
[389705015,1759807838143,-340.23234328,0.00018899,2]
[389705040,1759807840328,-504.25271394,0.00018899,2]
[389705041,1759807840341,-179.82623651,0.00018899,2]
[389705042,1759807840350,-5283.35292315,0.000189,2]
[389705043,1759807840360,-167.63088833,0.000189,2]
[389705044,1759807840370,-379.0865448,0.00018904,2]
[389705045,1759807840380,-167.63088831,0.00018959,2]
[389705046,1759807840389,-204.67,0.00018968,3]
[389705047,1759807840399,-614.03,0.00018968,3]
[389705048,1759807840408,-500.0,0.00018977,2]
[389705049,1759807840418,-276.25495551,0.00018977,2]
[389705050,1759807840427,-355.33469597,0.00018977,2]
[389705051,1759807840436,-500.0,0.00018977,2]
[389705052,1759807840447,-500.0,0.00018977,2]
[389705053,1759807840456,-500.0,0.00018977,2]
[389705054,1759807840465,-500.0,0.00018977,2]
[389705055,1759807840475,-500.0,0.00018977,2]
[389705056,1759807840484,-500.0,0.00018977,2]
[389705057,1759807840494,-472.75573442,0.00018977,2]
[389705504,1759808730123,5484.44247697,0.0001579,2]
[389705505,1759808731192,-300.0,0.0001579,2]
[389705508,1759808735518,1691.27215676,0.00015632,2]
[389705509,1759808743458,1539.45408158,0.00015632,2]
[389705512,1759808751681,705.93811972,0.00015632,2]
[389705514,1759808767378,2351.27729794,0.00015632,2]
[389705518,1759808782862,500.0,0.00015632,2]
[389705528,1759808860519,-5355.09752303,0.0001579,2]
[389705529,1759808860542,-224.90247697,0.00015998,2]
[389705580,1759809032224,-1200.0,0.00015998,2]
[389705582,1759809032233,-186.30627051,0.00015999,2]
[389705584,1759809032243,-300.0,0.00016318,2]
[389705586,1759809032253,-300.0,0.00016318,2]
[389705588,1759809032263,-300.0,0.00016318,2]
[389705589,1759809032272,-1200.0,0.00016318,2]
[389705591,1759809032281,-300.0,0.00016319,2]
[389705593,1759809032290,-300.0,0.00016319,2]
[389705595,1759809032299,-300.0,0.00016319,2]
[389705597,1759809032309,-300.0,0.00016319,2]
[389705599,1759809032318,-300.0,0.00016319,2]
[389705601,1759809032327,-300.0,0.00016319,2]
[389705603,1759809032336,-300.0,0.00016319,2]
[389705605,1759809032346,-300.0,0.00016319,2]
[389705607,1759809032355,-300.0,0.00016319,2]
[389705610,1759809032364,-300.0,0.00016319,2]
[389705612,1759809032372,-300.0,0.00016319,2]
[389705614,1759809032382,-300.0,0.00016319,2]
[389705616,1759809032391,-300.0,0.00016319,2]
[389705618,1759809032400,-300.0,0.00016319,2]
[389705620,1759809032409,-300.0,0.00016319,2]
[389705622,1759809032419,-204.93689756,0.00016799,2]
[389705624,1759809032428,-228.7771836,0.0001744,2]
[389705625,1759809032436,-223.56752461,0.00017599,2]
[389705627,1759809032446,-300.0,0.00017835,2]
[389705629,1759809032455,-1200.0,0.00017924,2]
[389705631,1759809032465,-734.7321892,0.00018029,2]
[389705633,1759809032473,-242.19815167,0.00018399,2]
[389705635,1759809032482,-168.0,0.00018667,2]
[389705637,1759809032491,-399.6540818,0.000187,2]
[389705639,1759809032500,-167.63088831,0.000188,2]
[389705641,1759809032510,-174.60965712,0.000188,2]
[389705643,1759809032519,-1935.91057751,0.00018867,2]
[389705645,1759809032528,-500.0,0.00018867,2]
[389705647,1759809032537,-500.0,0.00018867,2]
[389705649,1759809032546,-500.0,0.00018867,2]
[389705651,1759809032555,-500.0,0.00018867,2]
[389705653,1759809032564,-500.0,0.00018867,2]
[389705655,1759809032573,-500.0,0.00018867,2]
[389705657,1759809032582,-409.34,0.00018868,3]
[389705659,1759809032592,-173.81,0.00018868,3]
[389705661,1759809032601,-521.45,0.00018868,3]
[389705663,1759809032610,-598.73428718,0.00018877,2]
[389705665,1759809032623,-193.37846885,0.00018877,2]
[389705667,1759809032632,-471.43317854,0.00018877,2]
[389705669,1759809032641,-500.0,0.00018877,2]
[389705671,1759809032651,-416.00249773,0.00018877,2]
[389705673,1759809032660,-413.46381211,0.00018877,2]
[389705675,1759809032669,-216.20189417,0.00018877,2]
[389705677,1759809032678,-500.0,0.00018877,2]
[389705679,1759809032687,-500.0,0.00018877,2]
[389705681,1759809032696,-500.0,0.00018877,2]
[389705683,1759809032705,-500.0,0.00018877,2]
[389705685,1759809032715,-500.0,0.00018877,2]
[389705687,1759809032724,-493.66172334,0.00018877,2]
[389705689,1759809032736,-6.33827666,0.00018877,2]
[389705691,1759809032746,-358.07671039,0.00018877,2]
[389705693,1759809032755,-239.47416768,0.00018877,2]
[389705695,1759809032764,-588.60523932,0.00018877,2]
[389705697,1759809032774,-553.98798508,0.00018877,2]
[389705699,1759809032783,-421.90380715,0.00018877,2]
[389705701,1759809032795,-78.09619285,0.00018877,2]
[389705704,1759809032804,-297.84103913,0.00018877,2]
[389705708,1759809032845,-202.15896087,0.00018877,2]
[389705710,1759809032866,-500.0,0.00018877,2]
[389705712,1759809032875,-500.0,0.00018877,2]
[389705714,1759809032885,-169.23612533,0.00018877,2]
[389705716,1759809032894,-500.0,0.00018877,2]
[389705718,1759809032903,-431.80224455,0.00018877,2]
[389705720,1759809032914,-68.19775545,0.00018877,2]
[389705722,1759809032923,-1426.20069988,0.00018878,2]
[389705724,1759809032934,-303.05576691,0.00018878,2]
[389705766,1759809033333,2768.0,0.0002612,55]
[389706669,1759809043319,-618.52842271,0.00018029,2]
[389706670,1759809043328,-2471.63957713,0.00018029,2]
[389706671,1759809043337,-36708.22187489,0.00018878,2]
[389706825,1759809046369,-4615.3,0.00018878,2]
[389706871,1759809794471,500.0,0.0002612,55]
[389706890,1759809971248,5000.0,0.00028767,120]
[389706897,1759810019355,15000.0,0.00028767,120]
[389706900,1759810030959,15000.0,0.00028767,120]
[389706902,1759810044411,15000.0,0.00028767,120]
[389706904,1759810052154,15000.0,0.00028767,120]
[389706982,1759810240353,-154.0,0.000186,2]
[389706983,1759810240364,-154.63465066,0.000186,2]
[389706984,1759810240373,-160.59600518,0.0001863,2]
[389706985,1759810240384,-340.0,0.00018752,2]
[389706986,1759810240393,-167.63088831,0.00018753,2]
[389706987,1759810240403,-3522.2352821,0.00018753,2]
[389706988,1759810240412,-504.59121359,0.00018753,2]
[389706989,1759810240424,-9.22099724,0.00018753,2]
[389706990,1759810240433,-300.0,0.00018776,2]
[389706991,1759810240443,-392.21052924,0.00018777,2]
[389706995,1759810240534,-118.6611589,0.00018777,2]
[389706997,1759810240543,-185.0143731,0.00018777,2]
[389706999,1759810240553,-317.56407893,0.00018777,2]
[389707001,1759810240562,-1254.9808396,0.00018778,2]
[389707155,1759810435228,15916.91336,0.00028767,120]
[389707156,1759810680905,19993.91986,0.0002876,120]
[389707157,1759810884694,160.72676,0.00025,30]
[389707158,1759810912983,1000.11,0.0002876,120]
[389707159,1759811107645,500.0,0.00019255,9]
[389707165,1759811129079,210.414215,0.00018768,10]
[389707168,1759811289643,3193.62462865,0.00015,2]
[389707169,1759811289666,10000.01,0.00015,2]
[389707170,1759811289688,10000.01,0.00015,2]
[389707171,1759811289711,10000.01,0.00015,2]
[389707172,1759811289733,10000.01,0.00015,2]
[389707173,1759811289755,3305.02368552,0.00015,2]
[389707175,1759811294853,644.153274,0.00013699,2]
[389707176,1759811314918,1535.99392142,0.00024,60]
[389707202,1759811432706,-500.0,0.00015944,2]
[389707204,1759811432716,-160.27812503,0.00016364,2]
[389707206,1759811432725,-500.0,0.00016783,2]
[389707208,1759811432735,-176.30593753,0.00017164,2]
[389707210,1759811432744,-500.0,0.00017667,2]
[389707212,1759811432754,-196.83756583,0.00017934,2]
[389707214,1759811432763,-476.73670434,0.00017934,2]
[389707217,1759811432774,-309.82620871,0.00017934,2]
[389707219,1759811432783,-192.33375003,0.00017964,2]
[389707221,1759811432792,-145.17813243,0.00018378,2]
[389707463,1759811440603,-17.56119747,0.00018378,2]
[389707465,1759811440613,-449.58568452,0.0001859,2]
[389707467,1759811440623,-500.0,0.00018597,2]
[389707469,1759811440632,-2348.15685474,0.00018664,2]
[389707471,1759811440641,-300.0,0.00018676,2]
[389707473,1759811440650,-1200.0,0.00018676,2]
[389707475,1759811440659,-300.0,0.00018676,2]
[389707477,1759811440668,-502.0,0.00018677,2]
[389707479,1759811440677,-151.0,0.00018677,2]
[389707481,1759811440687,-151.0,0.00018677,2]
[389707483,1759811440696,-151.0,0.00018677,2]
[389707485,1759811440705,-151.0,0.00018677,2]
[389707487,1759811440714,-152.392712,0.00018677,2]
[389707489,1759811440723,-400.0,0.00018677,2]
[389707491,1759811440732,-400.0,0.00018677,2]
[389707493,1759811440741,-400.0,0.00018677,2]
[389707495,1759811440750,-400.0,0.00018677,2]
[389707498,1759811440759,-295.074924,0.00018677,2]
[389707500,1759811440769,-295.074924,0.00018677,2]
[389707503,1759811440778,-295.074924,0.00018677,2]
[389707506,1759811440787,-295.074924,0.00018677,2]
[389707507,1759811440797,-151.0,0.00018677,2]
[389707509,1759811440806,-229.03545,0.00018677,2]
[389707511,1759811440816,-500.0,0.00018677,2]
[389707513,1759811440826,-446.56722885,0.00018677,2]
[389707794,1759811443645,-53.43277115,0.00018677,2]
[389707796,1759811443654,-296.56722885,0.00018677,2]
[389707803,1759811443709,-140.9541719,0.00018677,2]
[389707805,1759811443719,-151.0,0.00018678,2]
[389707807,1759811443728,-151.0,0.00018678,2]
[389707809,1759811443738,-151.0,0.00018678,2]
[389707811,1759811443746,-151.0,0.00018678,2]
[389707813,1759811443755,-400.0,0.00018678,2]
[389707815,1759811443764,-400.0,0.00018678,2]
[389707817,1759811443773,-400.0,0.00018678,2]
[389707819,1759811443782,-400.0,0.00018678,2]
[389707821,1759811443791,-295.074924,0.00018678,2]
[389707823,1759811443801,-295.074924,0.00018678,2]
[389707825,1759811443810,-47.07580722,0.00018678,2]
[389708133,1759811446702,-247.99911678,0.00018678,2]
[389708135,1759811446712,-295.074924,0.00018678,2]
[389708137,1759811446722,-151.0,0.00018678,2]
[389708139,1759811446731,-9685.94595922,0.00018678,2]
[389708228,1759811447623,-361.05999995,0.00018678,2]
[389710021,1759811662473,1029.01,0.000261,55]
[389710029,1759811885546,2635.21,0.000261,55]
[389710038,1759812119828,2285.7714,0.00028767,120]
[389710039,1759812369063,10000.0,0.0002876,120]
[389710042,1759812430098,10007.134799,0.00028767,120]
[389710047,1759812602502,10000.0,0.00028767,120]
[389710070,1759812631839,-168.0,0.00018079,2]
[389710071,1759812631848,-165.28920382,0.00018108,2]
[389710073,1759812631858,-222.0,0.00018253,2]
[389710075,1759812631867,-264.21154368,0.00018311,2]
[389710077,1759812631879,-4771.31900264,0.00018466,2]
[389710078,1759812631889,-393.38747392,0.00018476,2]
[389710079,1759812631898,-222.0,0.00018495,2]
[389710080,1759812631908,-41990.43448352,0.00018574,2]
[389710081,1759812631917,-300.0,0.00018574,2]
[389710082,1759812631926,-300.0,0.00018574,2]
[389710083,1759812631935,-300.0,0.00018574,2]
[389710084,1759812631945,-1200.0,0.00018574,2]
[389710085,1759812631954,-300.0,0.00018574,2]
[389710086,1759812631963,-300.0,0.00018574,2]
[389710087,1759812631972,-357.61018169,0.00018575,2]
[389710089,1759812631982,-500.0,0.00018575,2]
[389710091,1759812631991,-500.0,0.00018575,2]
[389710092,1759812632000,-500.0,0.00018575,2]
[389710093,1759812632010,-500.0,0.00018575,2]
[389710094,1759812632019,-500.0,0.00018575,2]
[389710095,1759812632028,-262.78665838,0.00018575,2]
[389710096,1759812632037,-500.0,0.00018575,2]
[389710097,1759812632047,-500.0,0.00018575,2]
[389710098,1759812632056,-525.0,0.00018575,2]
[389710099,1759812632065,-500.0,0.00018575,2]
[389710100,1759812632074,-500.0,0.00018575,2]
[389710101,1759812632083,-500.0,0.00018575,2]
[389710102,1759812632092,-500.0,0.00018575,2]
[389710103,1759812632101,-500.0,0.00018575,2]
[389710104,1759812632110,-500.0,0.00018575,2]
[389710105,1759812632119,-500.0,0.00018575,2]
[389710106,1759812632129,-500.0,0.00018575,2]
[389710107,1759812632138,-500.0,0.00018575,2]
[389710108,1759812632146,-500.0,0.00018575,2]
[389710109,1759812632156,-500.0,0.00018575,2]
[389710110,1759812632165,-500.0,0.00018575,2]
[389710111,1759812632174,-500.0,0.00018575,2]
[389710112,1759812632183,-500.0,0.00018575,2]
[389710113,1759812632192,-151.0,0.00018575,2]
[389710114,1759812632202,-3302.153136,0.00018575,2]
[389710115,1759812632211,-3302.153136,0.00018575,2]
[389710116,1759812632221,-3302.153136,0.00018575,2]
[389710117,1759812632230,-3302.153136,0.00018575,2]
[389710118,1759812632239,-177.044954,0.00018575,2]
[389710119,1759812632248,-177.044954,0.00018575,2]
[389710120,1759812632258,-177.044954,0.00018575,2]
[389710121,1759812632267,-177.044954,0.00018575,2]
[389710122,1759812632277,-177.044954,0.00018575,2]
[389710123,1759812632287,-177.044954,0.00018575,2]
[389710124,1759812632296,-132660.20702607,0.00018576,2]
[389710127,1759812637683,-151.0,0.00018575,2]
[389710128,1759812637695,-177.044954,0.00018575,2]
[389710129,1759812637706,-151.0,0.00018575,2]
[389710130,1759812637718,-177.044954,0.00018575,2]
[389710131,1759812637729,-151.0,0.00018575,2]
[389710132,1759812637741,-177.044954,0.00018575,2]
[389710133,1759812637753,-177.044954,0.00018575,2]
[389710134,1759812637766,-177.044954,0.00018575,2]
[389710135,1759812637778,-177.044954,0.00018575,2]
[389710136,1759812637787,-1250.06197975,0.00018576,2]
[389710137,1759812637799,-449.68474497,0.00018576,2]
[389710138,1759812637816,-235640.04624921,0.00018576,2]
[389710139,1759812637828,-153.558714,0.00018576,2]
[389710140,1759812637841,-3302.153136,0.00018576,2]
[389710141,1759812637853,-3302.153136,0.00018576,2]
[389710142,1759812637864,-3302.153136,0.00018576,2]
[389710143,1759812637877,-3302.153136,0.00018576,2]
[389710144,1759812637887,-177.044954,0.00018576,2]
[389710145,1759812637898,-177.044954,0.00018576,2]
[389710146,1759812637909,-177.044954,0.00018576,2]
[389710147,1759812637920,-177.044954,0.00018576,2]
[389710148,1759812637930,-177.044954,0.00018576,2]
[389710149,1759812637940,-177.044954,0.00018576,2]
[389710150,1759812637950,-177.044954,0.00018576,2]
[389710151,1759812637964,-177.044958,0.00018576,2]
[389710152,1759812637975,-204.99752446,0.00018577,2]
[389710153,1759812637986,-1565.43790316,0.00018578,2]
[389710154,1759812637996,-193.0141361,0.000186,2]
[389710155,1759812638006,-189.5432724,0.000186,2]
[389710156,1759812638016,-189.5432724,0.000186,2]
[389710157,1759812638026,-3302.153136,0.00018613,2]
[389710158,1759812638037,-3302.153136,0.00018613,2]
[389710159,1759812638048,-3302.153136,0.00018613,2]
[389710160,1759812638059,-3302.153136,0.00018613,2]
[389710161,1759812638074,-153.0,0.00018613,2]
[389710162,1759812638085,-154.1856986,0.00018613,2]
[389710163,1759812638096,-153.0,0.00018613,2]
[389710164,1759812638107,-347.62,0.00018668,3]
[389710165,1759812638118,-274.361797,0.00018672,2]
[389710166,1759812638128,-274.361797,0.00018672,2]
[389710167,1759812638144,-274.361797,0.00018672,2]
[389710168,1759812638155,-274.361797,0.00018672,2]
[389710169,1759812638166,-151.0,0.00018672,2]
[389710170,1759812638176,-151.0,0.00018672,2]
[389710171,1759812638187,-151.0,0.00018672,2]
[389710172,1759812638197,-151.0,0.00018672,2]
[389710173,1759812638208,-921.945121,0.00018672,2]
[389710174,1759812638218,-921.945121,0.00018672,2]
[389710175,1759812638229,-921.945121,0.00018672,2]
[389710176,1759812638239,-921.945121,0.00018672,2]
[389710177,1759812638251,-921.945121,0.00018672,2]
[389710178,1759812638262,-921.945121,0.00018672,2]
[389710179,1759812638273,-921.945121,0.00018672,2]
[389710180,1759812638284,-921.945121,0.00018672,2]
[389710181,1759812638295,-151.0,0.00018672,2]
[389710182,1759812638305,-151.0,0.00018672,2]
[389710183,1759812638316,-151.0,0.00018672,2]
[389710184,1759812638327,-296.91476082,0.00018672,2]
[389710185,1759812638338,-153.068941,0.00018672,2]
[389710186,1759812638349,-3302.153136,0.00018672,2]
[389710187,1759812638361,-3302.153136,0.00018672,2]
[389710188,1759812638372,-3302.153136,0.00018672,2]
[389710189,1759812638383,-3302.153136,0.00018672,2]
[389710190,1759812638395,-3302.153136,0.00018672,2]
[389710191,1759812638406,-3302.153136,0.00018672,2]
[389710192,1759812638418,-3302.153136,0.00018672,2]
[389710193,1759812638429,-3302.153126,0.00018672,2]
[389710194,1759812638440,-151.989716,0.00018673,2]
[389710195,1759812638452,-394.642348,0.00018673,2]
[389710196,1759812638464,-394.642348,0.00018673,2]
[389710197,1759812638475,-394.642348,0.00018673,2]
[389710198,1759812638487,-394.642348,0.00018673,2]
[389710199,1759812638498,-274.361797,0.00018673,2]
[389710200,1759812638509,-274.361797,0.00018673,2]
[389710201,1759812638520,-274.361797,0.00018673,2]
[389710202,1759812638531,-274.361797,0.00018673,2]
[389710203,1759812638542,-274.361797,0.00018673,2]
[389710204,1759812638552,-274.361797,0.00018673,2]
[389710205,1759812638564,-274.361797,0.00018673,2]
[389710206,1759812638576,-274.361797,0.00018673,2]
[389710207,1759812638587,-151.0,0.00018673,2]
[389710208,1759812638599,-151.0,0.00018673,2]
[389710209,1759812638611,-151.0,0.00018673,2]
[389710210,1759812638623,-151.0,0.00018673,2]
[389710211,1759812638635,-151.0,0.00018673,2]
[389710212,1759812638646,-151.0,0.00018673,2]
[389710213,1759812638657,-151.0,0.00018673,2]
[389710214,1759812638669,-154.4622178,0.00018673,2]
[389710215,1759812638681,-921.945121,0.00018673,2]
[389710216,1759812638692,-921.945121,0.00018673,2]
[389710217,1759812638704,-921.945121,0.00018673,2]
[389710218,1759812638715,-921.945121,0.00018673,2]
[389710219,1759812638726,-921.945121,0.00018673,2]
[389710220,1759812638737,-921.945121,0.00018673,2]
[389710221,1759812638748,-921.945121,0.00018673,2]
[389710222,1759812638760,-921.945121,0.00018673,2]
[389710223,1759812638771,-921.945121,0.00018673,2]
[389710224,1759812638782,-921.945121,0.00018673,2]
[389710225,1759812638794,-921.945121,0.00018673,2]
[389710226,1759812638806,-921.94513,0.00018673,2]
[389710227,1759812638816,-169.087353,0.00018673,2]
[389710228,1759812638827,-151.0,0.00018674,2]
[389710229,1759812638839,-151.0,0.00018674,2]
[389710230,1759812638851,-151.0,0.00018674,2]
[389710231,1759812638863,-151.0,0.00018674,2]
[389710232,1759812638878,-151.0,0.00018674,2]
[389710233,1759812638890,-240.0,0.00018674,2]
[389710234,1759812638902,-240.0,0.00018674,2]
[389710235,1759812638913,-240.0,0.00018674,2]
[389710236,1759812638927,-240.0,0.00018674,2]
[389710237,1759812638938,-240.0,0.00018674,2]
[389710238,1759812638951,-240.0,0.00018674,2]
[389710239,1759812638964,-240.0,0.00018674,2]
[389710240,1759812638976,-240.0,0.00018674,2]
[389710241,1759812638987,-240.0,0.00018674,2]
[389710242,1759812638999,-240.0,0.00018674,2]
[389710243,1759812639010,-240.0,0.00018674,2]
[389710244,1759812639022,-240.0,0.00018674,2]
[389710245,1759812639033,-394.642348,0.00018674,2]
[389710246,1759812639044,-394.642348,0.00018674,2]
[389710247,1759812639056,-394.642348,0.00018674,2]
[389710248,1759812639067,-394.642348,0.00018674,2]
[389710249,1759812639080,-394.642348,0.00018674,2]
[389710250,1759812639091,-394.642348,0.00018674,2]
[389710251,1759812639104,-394.642348,0.00018674,2]
[389710252,1759812639116,-394.642348,0.00018674,2]
[389710253,1759812639127,-394.642348,0.00018674,2]
[389710254,1759812639139,-394.642348,0.00018674,2]
[389710255,1759812639151,-394.642348,0.00018674,2]
[389710256,1759812639163,-394.642348,0.00018674,2]
[389710257,1759812639175,-274.361797,0.00018674,2]
[389710258,1759812639186,-274.361797,0.00018674,2]
[389710259,1759812639197,-274.361797,0.00018674,2]
[389710260,1759812639208,-274.361797,0.00018674,2]
[389710261,1759812639219,-274.361797,0.00018674,2]
[389710262,1759812639232,-274.361797,0.00018674,2]
[389710263,1759812639243,-274.361797,0.00018674,2]
[389710264,1759812639255,-274.361797,0.00018674,2]
[389710265,1759812639267,-151.0,0.00018674,2]
[389710266,1759812639278,-151.0,0.00018674,2]
[389710267,1759812639289,-151.0,0.00018674,2]
[389710268,1759812639299,-151.0,0.00018674,2]
[389710269,1759812639310,-151.0,0.00018674,2]
[389710270,1759812639321,-151.0,0.00018674,2]
[389710271,1759812639332,-400.986,0.00018675,2]
[389710272,1759812639344,-400.986,0.00018675,2]
[389710275,1759812639357,-400.986,0.00018675,2]
[389710277,1759812639369,-400.986,0.00018675,2]
[389710279,1759812639381,-400.986,0.00018675,2]
[389710281,1759812639393,-400.986,0.00018675,2]
[389710283,1759812639403,-400.986,0.00018675,2]
[389710285,1759812639415,-400.986,0.00018675,2]
[389710287,1759812639426,-151.0,0.00018675,2]
[389710290,1759812639436,-240.0,0.00018675,2]
[389710292,1759812639447,-240.0,0.00018675,2]
[389710295,1759812639458,-240.0,0.00018675,2]
[389710297,1759812639468,-240.0,0.00018675,2]
[389710299,1759812639479,-240.0,0.00018675,2]
[389710301,1759812639490,-240.0,0.00018675,2]
[389710303,1759812639501,-240.0,0.00018675,2]
[389710306,1759812639512,-240.0,0.00018675,2]
[389710309,1759812639523,-394.642348,0.00018675,2]
[389710311,1759812639534,-394.642348,0.00018675,2]
[389710313,1759812639545,-394.642348,0.00018675,2]
[389710315,1759812639556,-394.642354,0.00018675,2]
[389710317,1759812639566,-151.427169,0.00018676,2]
[389710319,1759812639578,-151.0,0.00018676,2]
[389710321,1759812639589,-400.986,0.00018676,2]
[389710322,1759812639600,-400.986,0.00018676,2]
[389710323,1759812639611,-400.986,0.00018676,2]
[389710324,1759812639621,-400.986,0.00018676,2]
[389710326,1759812639633,-400.986,0.00018676,2]
[389710328,1759812639644,-400.986,0.00018676,2]
[389710330,1759812639654,-400.986,0.00018676,2]
[389710332,1759812639665,-400.986,0.00018676,2]
[389710333,1759812639675,-151.0,0.00018677,2]
[389710334,1759812639686,-400.986,0.00018677,2]
[389710335,1759812639697,-400.986,0.00018677,2]
[389710336,1759812639712,-400.986,0.00018677,2]
[389710337,1759812639723,-400.986,0.00018677,2]
[389710338,1759812639734,-953.0,0.00018677,2]
[389710340,1759812639744,-151.560884,0.00018678,2]
[389710342,1759812639755,-151.0,0.00018678,2]
[389710343,1759812639766,-151.0,0.00018678,2]
[389710344,1759812639776,-153.481404,0.00018678,2]
[389710345,1759812639787,-151.0,0.00018678,2]
[389710347,1759812639798,-286.371093,0.00018678,2]
[389710348,1759812639808,-151.0,0.00018678,2]
[389710349,1759812639819,-151.0,0.00018678,2]
[389710350,1759812639829,-151.0,0.00018678,2]
[389710351,1759812639840,-151.0,0.00018678,2]
[389710352,1759812639850,-151.0,0.00018678,2]
[389710353,1759812639863,-151.0,0.00018678,2]
[389710354,1759812639876,-153.126353,0.00018678,2]
[389710355,1759812640233,-151.0,0.00018678,2]
[389710356,1759812640260,-154.656097,0.00018678,2]
[389710357,1759812640277,-500.0,0.00018678,2]
[389710358,1759812640286,-168.0,0.00018692,2]
[389710359,1759812640295,-151.0,0.00018692,2]
[389710360,1759812640304,-151.0,0.00018692,2]
[389710361,1759812640314,-314.34903192,0.00018778,2]
[389710362,1759812640322,-345.0,0.00018787,2]
[389710363,1759812640333,-168.0,0.00018791,2]
[389710364,1759812640343,-177.30960461,0.000189,2]
[389710365,1759812640352,-181.8181242,0.00018908,2]
[389710366,1759812640362,-168.0,0.00018911,2]
[389710367,1759812640371,-5016.5082095,0.00018938,2]
[389710368,1759812640381,-953.0,0.00018951,2]
[389710369,1759812640391,-500.0,0.00018952,2]
[389710370,1759812640400,-1565.43790314,0.00018965,2]
[389710371,1759812640409,-198.7032236,0.00018966,2]
[389710372,1759812640419,-186.61502716,0.00018966,2]
[389710373,1759812640429,-502.53494035,0.00018973,2]
[389710374,1759812640438,-500.0,0.00018973,2]
[389710375,1759812640447,-501.12818967,0.00018973,2]
[389710376,1759812640457,-155.53163081,0.00018973,2]
[389710377,1759812640466,-626.82541977,0.00018973,2]
[389710378,1759812640475,-500.0,0.00018973,2]
[389710379,1759812640485,-500.0,0.00018973,2]